fUST/lending_fUST_20250125
["ID","MTS","AMOUNT","RATE_DAILY","PERIOD"]
[350312494,1737783047885,-500.0,0.00018004,2]
[350312496,1737783047894,-500.0,0.00018004,2]
[350312498,1737783047903,-500.0,0.00018004,2]
[350312500,1737783047912,-636.46,0.00018004,2]
[350312502,1737783047921,-500.0,0.00018004,2]
[350312504,1737783047930,-500.0,0.00018004,2]
[350312506,1737783047939,-500.0,0.00018004,2]
[350312508,1737783047949,-500.0,0.00018004,2]
[350312510,1737783047958,-500.0,0.00018004,2]
[350312512,1737783047967,-177.29074559,0.00018004,2]
[350312514,1737783047976,-160.0,0.00018031,3]
[350312516,1737783047985,-164.0,0.00018037,2]
[350312518,1737783047994,-164.0,0.00018037,2]
[350312520,1737783048004,-164.0,0.00018037,2]
[350312522,1737783048014,-164.0,0.00018037,2]
[350312524,1737783048023,-167.48,0.00018037,2]
[350312526,1737783048032,-2548.76795559,0.00018041,2]
[350312528,1737783048041,-500.0,0.00018073,2]
[350312530,1737783048052,-500.63915383,0.00018073,2]
[350312532,1737783048061,-248.49427604,0.00018073,2]
[350312534,1737783048070,-500.0,0.00018073,2]
[350312536,1737783048080,-151.0,0.000181,2]
[350312538,1737783048088,-151.0,0.000181,2]
[350312540,1737783048099,-354.0685108,0.000181,2]
[350312542,1737783048108,-354.0685108,0.000181,2]
[350312544,1737783048117,-354.0685108,0.000181,2]
[350312546,1737783048127,-151.0,0.000181,2]
[350312548,1737783048136,-354.0685108,0.000181,2]
[350312550,1737783048145,-354.0685108,0.000181,2]
[350312552,1737783048154,-354.0685108,0.000181,2]
[350312554,1737783048163,-354.0685108,0.000181,2]
[350312556,1737783048172,-299.6984005,0.000181,2]
[350312558,1737783048182,-500.0,0.000181,2]
[350312560,1737783048192,-500.0,0.000181,2]
[350312562,1737783048202,-500.0,0.000181,2]
[350312564,1737783048212,-500.0,0.000181,2]
[350312566,1737783048221,-857.53,0.000181,2]
[350312568,1737783048230,-505.63659012,0.000181,2]
[350312570,1737783048240,-1044.19,0.000181,2]
[350312572,1737783048250,-500.0,0.000181,2]
[350312574,1737783048260,-669.43,0.000181,2]
[350312576,1737783048269,-151.0,0.000181,2]
[350312578,1737783048278,-151.0,0.000181,2]
[350312580,1737783048288,-517.15,0.000181,2]
[350312582,1737783048297,-500.0,0.000181,2]
[350312584,1737783048309,-605.47,0.000181,2]
[350312586,1737783048318,-2093.17,0.000181,2]
[350312587,1737783048328,-500.0,0.000181,2]
[350312589,1737783048338,-500.0,0.000181,2]
[350312591,1737783048347,-500.0,0.000181,2]
[350312594,1737783048356,-500.0,0.000181,2]
[350312595,1737783048367,-2020.91,0.000181,2]
[350312597,1737783048376,-795.29,0.000181,2]
[350312599,1737783048387,-500.0,0.000181,2]
[350312601,1737783048396,-1094.93,0.000181,2]
[350312604,1737783048406,-514.30684333,0.000181,2]
[350312606,1737783048416,-840.25,0.000181,2]
[350312608,1737783048426,-500.0,0.000181,2]
[350312610,1737783048435,-1024.29,0.000181,2]
[350312612,1737783048445,-657.08,0.000181,2]
[350312614,1737783048455,-1927.15,0.000181,2]
[350312615,1737783048464,-500.0,0.000181,2]
[350312618,1737783048474,-280.2808146,0.000181,2]
[350312619,1737783048483,-500.0,0.000181,2]
[350312623,1737783048503,-500.0,0.000181,2]
[350312625,1737783048514,-500.0,0.000181,2]
[350312627,1737783048524,-500.0,0.000181,2]
[350312629,1737783048534,-508.55,0.000181,2]
[350312631,1737783048544,-500.0,0.000181,2]
[350312633,1737783048556,-154.2562043,0.000181,2]
[350312635,1737783048566,-153.0,0.000181,2]
[350312637,1737783048576,-215.3633681,0.000181,2]
[350312639,1737783048589,-306.0,0.000181,2]
[350312641,1737783048599,-354.0685108,0.000181,2]
[350312643,1737783048608,-500.0,0.000181,2]
[350312645,1737783048619,-1017.92,0.000181,2]
[350312647,1737783048628,-500.0,0.000181,2]
[350312649,1737783048638,-500.0,0.000181,2]
[350312651,1737783048648,-354.0685108,0.000181,2]
[350312654,1737783048658,-153.0,0.000181,2]
[350312656,1737783048669,-430.584751,0.000181,2]
[350312658,1737783048679,-154.2562043,0.000181,2]
[350312660,1737783048689,-153.0,0.000181,2]
[350312662,1737783048698,-500.0,0.000181,2]
[350312664,1737783048708,-500.0,0.000181,2]
[350312666,1737783048719,-500.0,0.000181,2]
[350312668,1737783048729,-354.0685108,0.000181,2]
[350312670,1737783048739,-215.3633681,0.000181,2]
[350312672,1737783048748,-2934.14,0.000181,2]
[350312674,1737783048758,-354.0685108,0.000181,2]
[350312676,1737783048769,-354.0685108,0.000181,2]
[350312678,1737783048778,-12077.80634464,0.000181,2]
[350312680,1737783048788,-151.0,0.00018101,2]
[350312682,1737783048798,-151.0,0.00018102,2]
[350312684,1737783048809,-151.0,0.00018102,2]
[350312686,1737783048819,-151.0,0.00018102,2]
[350312688,1737783048829,-500.0,0.00018102,2]
[350312690,1737783048839,-616.12,0.00018102,2]
[350312692,1737783048848,-500.0,0.00018102,2]
[350312694,1737783048858,-511.58,0.00018102,2]
[350312696,1737783048869,-500.0,0.00018102,2]
[350312698,1737783048879,-500.0,0.00018102,2]
[350312701,1737783048889,-912.18,0.00018102,2]
[350312703,1737783048899,-816.96,0.00018102,2]
[350312705,1737783048909,-500.0,0.00018102,2]
[350312706,1737783048919,-592.75377665,0.00018102,2]
[350312708,1737783048928,-500.0,0.00018102,2]
[350312711,1737783048938,-500.0,0.00018102,2]
[350312729,1737783048948,-12077.80634443,0.00018107,2]
[350312731,1737783049107,-500.0,0.00018111,2]
[350312733,1737783049117,-500.0,0.00018111,2]
[350312735,1737783049126,-500.0,0.00018113,2]
[350312737,1737783049136,-500.0,0.00018113,2]
[350312739,1737783049145,-500.0,0.00018113,2]
[350312741,1737783049155,-150.29857559,0.00018113,2]
[350312743,1737783049164,-500.0,0.00018113,2]
[350312745,1737783049174,-500.0,0.00018113,2]
[350312747,1737783049183,-500.0,0.00018113,2]
[350312749,1737783049193,-150.55815765,0.00018113,2]
[350312751,1737783049203,-150.82630234,0.00018113,2]
[350312753,1737783049213,-500.0,0.00018113,2]
[350312755,1737783049222,-500.0,0.00018139,2]
[350312757,1737783049231,-787.0,0.00018139,2]
[350312759,1737783049241,-3715.07,0.00018139,2]
[350312761,1737783049251,-1000.0,0.00018139,7]
[350312763,1737783049260,-500.0,0.00018139,2]
[350312765,1737783049270,-1539.86,0.00018139,2]
[350312767,1737783049279,-500.0,0.00018139,2]
[350312769,1737783049288,-500.81,0.00018139,2]
[350312771,1737783049298,-500.0,0.00018139,2]
[350312773,1737783049309,-500.0,0.00018139,2]
[350312775,1737783049318,-500.0,0.00018139,2]
[350312777,1737783049328,-396.12856023,0.00018139,2]
[350312779,1737783049338,-505.46,0.00018139,2]
[350312781,1737783049347,-500.0,0.0001814,2]
[350312783,1737783049357,-544.2,0.0001814,2]
[350312785,1737783049366,-500.0,0.0001814,2]
[350312787,1737783049376,-500.0,0.0001814,2]
[350312789,1737783049385,-1052.84,0.0001814,2]
[350312791,1737783049395,-500.0,0.0001814,2]
[350312793,1737783049404,-500.0,0.0001814,2]
[350312795,1737783049414,-654.95,0.0001814,2]
[350312797,1737783049423,-546.02,0.0001814,2]
[350312799,1737783049432,-1282.17,0.0001814,2]
[350312801,1737783049442,-828.62,0.0001814,2]
[350312803,1737783049453,-500.0,0.0001814,2]
[350312805,1737783049462,-918.14,0.0001814,2]
[350312807,1737783049472,-500.0,0.0001814,2]
[350312809,1737783049481,-787.76,0.0001814,2]
[350312811,1737783049491,-500.0,0.0001814,2]
[350312813,1737783049500,-381.77309271,0.0001814,2]
[350312815,1737783049509,-871.44,0.0001814,2]
[350312817,1737783049519,-500.0,0.0001814,2]
[350312819,1737783049529,-716.58,0.0001814,2]
[350312821,1737783049539,-500.0,0.0001814,2]
[350312823,1737783049549,-500.0,0.0001814,2]
[350312825,1737783049560,-500.0,0.0001814,2]
[350312827,1737783049569,-616.39,0.0001814,2]
[350312829,1737783049579,-500.0,0.0001814,2]
[350312831,1737783049594,-1219.8,0.0001814,2]
[350312833,1737783049603,-985.76,0.0001814,2]
[350312835,1737783049612,-500.0,0.0001814,2]
[350312837,1737783049622,-500.0,0.0001814,2]
[350312839,1737783049632,-1865.78,0.0001814,2]
[350312841,1737783049641,-2424.05,0.0001814,2]
[350312843,1737783049651,-500.0,0.0001814,2]
[350312844,1737783049660,-500.0,0.0001814,2]
[350312845,1737783049670,-881.13,0.0001814,2]
[350312846,1737783049679,-500.0,0.0001814,2]
[350312847,1737783049688,-500.0,0.0001814,2]
[350312849,1737783049698,-2623.3,0.0001814,2]
[350312851,1737783049707,-5048.5,0.0001814,2]
[350312853,1737783049716,-500.0,0.0001814,2]
[350312855,1737783049725,-500.0,0.0001814,2]
[350312858,1737783049735,-2015.43,0.0001814,2]
[350312860,1737783049744,-500.0,0.0001814,2]
[350312862,1737783049754,-500.0,0.0001814,2]
[350312863,1737783049764,-500.0,0.0001814,2]
[350312866,1737783049774,-1631.08,0.0001814,2]
[350312868,1737783049784,-753.24,0.0001814,2]
[350312870,1737783049793,-810.73,0.0001814,2]
[350312872,1737783049803,-601.82,0.0001814,2]
[350312874,1737783049813,-500.0,0.0001814,2]
[350312876,1737783049823,-1029.1,0.0001814,2]
[350312878,1737783049833,-394.08219501,0.0001814,2]
[350312880,1737783049842,-500.0,0.0001814,2]
[350312882,1737783049852,-500.0,0.0001814,2]
[350312884,1737783049862,-2022.49,0.0001814,2]
[350312886,1737783049871,-545.48,0.0001814,2]
[350312888,1737783049881,-500.0,0.0001814,2]
[350312890,1737783049892,-500.0,0.0001814,2]
[350312892,1737783049901,-500.0,0.0001814,2]
[350312894,1737783049911,-8619.28,0.0001814,2]
[350312896,1737783049920,-500.0,0.0001814,2]
[350312898,1737783049930,-500.0,0.0001814,2]
[350312900,1737783049939,-26555.84,0.0001814,2]
[350312902,1737783049948,-500.0,0.0001814,2]
[350312904,1737783049958,-3073.32,0.0001814,2]
[350312906,1737783049967,-832.25,0.0001814,2]
[350312908,1737783049977,-500.0,0.0001814,2]
[350312910,1737783049986,-500.0,0.0001814,2]
[350312912,1737783049997,-3753.59,0.0001814,2]
[350312914,1737783050008,-500.0,0.0001814,2]
[350312916,1737783050018,-1859.87,0.0001814,2]
[350312918,1737783050027,-1711.96,0.0001814,2]
[350312920,1737783050037,-500.0,0.0001814,2]
[350312922,1737783050046,-908.57,0.0001814,2]
[350312924,1737783050056,-581.39,0.0001814,2]
[350312926,1737783050066,-500.0,0.0001814,2]
[350312928,1737783050075,-735.83,0.0001814,2]
[350312930,1737783050084,-500.0,0.0001814,2]
[350312932,1737783050094,-1378.74,0.0001814,2]
[350312934,1737783050103,-605.72,0.0001814,2]
[350312936,1737783050112,-500.0,0.0001814,2]
[350312938,1737783050122,-500.0,0.0001814,2]
[350312940,1737783050131,-547.67,0.0001814,2]
[350312942,1737783050140,-500.0,0.0001814,2]
[350312944,1737783050149,-1062.45,0.0001814,2]
[350312946,1737783050158,-500.0,0.0001814,2]
[350312948,1737783050168,-500.0,0.0001814,2]
[350312950,1737783050177,-500.0,0.0001814,2]
[350312951,1737783050187,-500.0,0.0001814,2]
[350312954,1737783050197,-500.0,0.0001814,2]
[350312956,1737783050206,-500.0,0.0001814,2]
[350312958,1737783050215,-2627.06,0.0001814,2]
[350312960,1737783050225,-500.0,0.0001814,2]
[350312962,1737783050235,-500.0,0.0001814,2]
[350312964,1737783050244,-500.0,0.0001814,2]
[350312966,1737783050254,-3526.72,0.0001814,2]
[350312968,1737783050264,-1232.6,0.0001814,2]
[350312970,1737783050273,-1205.19,0.0001814,2]
[350312972,1737783050282,-500.0,0.0001814,2]
[350312974,1737783050292,-16989.41,0.0001814,2]
[350312976,1737783050301,-2700.19,0.0001814,2]
[350312978,1737783050313,-500.0,0.0001814,2]
[350312980,1737783050322,-5593.18,0.0001814,2]
[350312982,1737783050331,-500.0,0.0001814,2]
[350312984,1737783050341,-963.98,0.0001814,2]
[350312986,1737783050350,-1368.82,0.0001814,2]
[350312988,1737783050360,-500.0,0.0001814,2]
[350312990,1737783050370,-557.36,0.0001814,2]
[350312992,1737783050383,-500.0,0.0001814,2]
[350312994,1737783050392,-500.0,0.0001814,2]
[350312996,1737783050402,-55156.21,0.0001814,2]
[350312998,1737783050411,-500.0,0.0001814,2]
[350313000,1737783050420,-500.0,0.0001814,2]
[350313002,1737783050430,-500.0,0.0001814,2]
[350313004,1737783050440,-611.62,0.00018141,2]
[350313006,1737783050450,-500.0,0.00018141,2]
[350313008,1737783050459,-500.0,0.00018141,2]
[350313010,1737783050469,-500.0,0.00018141,2]
[350313012,1737783050478,-481.3429744,0.00018141,2]
[350313014,1737783050487,-500.0,0.00018141,2]
[350313016,1737783050497,-500.0,0.00018141,2]
[350313018,1737783050507,-500.0,0.00018141,2]
[350313020,1737783050517,-500.0,0.00018141,2]
[350313022,1737783050527,-500.0,0.00018141,2]
[350313024,1737783050538,-420.55267262,0.00018141,2]
[350313026,1737783050548,-500.0,0.00018141,2]
[350313028,1737783050557,-500.0,0.00018141,2]
[350313030,1737783050567,-500.0,0.00018141,2]
[350313032,1737783050576,-500.0,0.00018141,2]
[350313034,1737783050588,-500.0,0.00018141,2]
[350313036,1737783050598,-1461.53,0.00018141,2]
[350313038,1737783050608,-500.0,0.00018141,2]
[350313040,1737783050617,-500.0,0.00018141,2]
[350313042,1737783050627,-500.0,0.00018141,2]
[350313045,1737783050637,-500.0,0.00018141,2]
[350313046,1737783050648,-500.0,0.00018141,2]
[350313048,1737783050657,-500.0,0.00018141,2]
[350313050,1737783050668,-500.0,0.00018141,2]
[350313052,1737783050677,-225.03095226,0.00018141,2]
[350313054,1737783050688,-500.0,0.00018141,2]
[350313056,1737783050698,-631.75,0.00018141,2]
[350313058,1737783050707,-630.05,0.00018141,2]
[350313060,1737783050717,-500.0,0.00018141,2]
[350313062,1737783050726,-471.72543951,0.00018141,2]
[350313064,1737783050735,-500.0,0.00018141,2]
[350313066,1737783050745,-770.5,0.00018141,2]
[350313068,1737783050755,-539.85950412,0.00018141,2]
[350313071,1737783050765,-500.0,0.00018141,2]
[350313072,1737783050774,-500.0,0.00018141,2]
[350313074,1737783050783,-500.0,0.00018141,2]
[350313077,1737783050794,-500.0,0.00018141,2]
[350313078,1737783050803,-500.0,0.00018141,2]
[350313080,1737783050814,-500.0,0.00018141,2]
[350313082,1737783050823,-500.0,0.00018141,2]
[350313084,1737783050833,-500.0,0.00018141,2]
[350313087,1737783050843,-500.0,0.00018141,2]
[350313088,1737783050852,-500.0,0.00018141,2]
[350313090,1737783050862,-500.0,0.00018141,2]
[350313092,1737783050871,-507.73,0.00018141,2]
[350313094,1737783050882,-500.0,0.00018141,2]
[350313097,1737783050892,-768.09,0.00018141,2]
[350313099,1737783050902,-500.0,0.00018141,2]
[350313101,1737783050912,-336.21464571,0.00018141,2]
[350313103,1737783050921,-300.97825926,0.00018141,2]
[350313104,1737783050930,-500.0,0.00018141,2]
[350313107,1737783050940,-500.0,0.00018141,2]
[350313108,1737783050950,-500.0,0.00018141,2]
[350313111,1737783050960,-500.0,0.00018141,2]
[350313112,1737783050969,-503.69743066,0.00018141,2]
[350313115,1737783050979,-500.0,0.00018141,2]
[350313116,1737783050988,-500.0,0.00018141,2]
[350313119,1737783050998,-750.18,0.00018141,2]
[350313131,1737783051007,-500.0,0.00018141,2]
[350313134,1737783051119,-500.0,0.00018141,2]
[350313136,1737783051128,-500.0,0.00018141,2]
[350313138,1737783051138,-500.0,0.00018141,2]
[350313140,1737783051147,-581.05,0.00018141,2]
[350313142,1737783051156,-500.0,0.00018141,2]
[350313144,1737783051166,-506.80650888,0.00018141,2]
[350313146,1737783051175,-500.0,0.00018141,2]
[350313148,1737783051191,-500.0,0.00018141,2]
[350313149,1737783051201,-500.0,0.00018141,2]
[350313152,1737783051211,-500.0,0.00018141,2]
[350313154,1737783051222,-500.0,0.00018141,2]
[350313156,1737783051231,-500.0,0.00018141,2]
[350313158,1737783051242,-500.0,0.00018141,2]
[350313160,1737783051251,-506.67,0.00018141,2]
[350313162,1737783051260,-508.46856378,0.00018141,2]
[350313163,1737783051270,-852.39,0.00018141,2]
[350313165,1737783051280,-645.55262906,0.00018141,2]
[350313167,1737783051290,-758.84,0.00018141,2]
[350313170,1737783051302,-500.0,0.00018141,2]
[350313172,1737783051314,-500.0,0.00018141,2]
[350313174,1737783051323,-500.0,0.00018141,2]
[350313176,1737783051333,-500.0,0.00018141,2]
[350313178,1737783051343,-500.0,0.00018141,2]
[350313180,1737783051353,-500.0,0.00018141,2]
[350313182,1737783051363,-500.0,0.00018141,2]
[350313184,1737783051374,-500.0,0.00018141,2]
[350313186,1737783051384,-500.0,0.00018141,2]
[350313188,1737783051394,-500.0,0.00018141,2]
[350313190,1737783051404,-500.0,0.00018141,2]
[350313192,1737783051414,-500.0,0.00018141,2]
[350313194,1737783051423,-3068.28,0.00018141,2]
[350313196,1737783051433,-511.85512048,0.00018141,2]
[350313198,1737783051443,-500.0,0.00018141,2]
[350313199,1737783051454,-500.0,0.00018141,2]
[350313202,1737783051464,-1339.02,0.00018141,2]
[350313203,1737783051474,-500.0,0.00018141,2]
[350313206,1737783051484,-853.96,0.00018141,2]
[350313207,1737783051494,-500.0,0.00018141,2]
[350313209,1737783051504,-500.0,0.00018141,2]
[350313211,1737783051514,-500.0,0.00018141,2]
[350313213,1737783051524,-500.0,0.00018141,2]
[350313216,1737783051534,-500.0,0.00018141,2]
[350313218,1737783051543,-17828.12,0.00018141,2]
[350313220,1737783051553,-500.0,0.00018141,2]
[350313221,1737783051565,-500.0,0.00018141,2]
[350313223,1737783051575,-1577.34,0.00018141,2]
[350313226,1737783051586,-500.0,0.00018141,2]
[350313228,1737783051598,-453.69577728,0.00018141,2]
[350313230,1737783051608,-500.0,0.00018141,2]
[350313232,1737783051617,-500.0,0.00018141,2]
[350313234,1737783051627,-500.0,0.00018141,2]
[350313236,1737783051638,-500.0,0.00018141,2]
[350313238,1737783051647,-500.0,0.00018141,2]
[350313240,1737783051657,-500.0,0.00018141,2]
[350313242,1737783051668,-1117.98,0.00018141,2]
[350313244,1737783051678,-500.0,0.00018141,2]
[350313246,1737783051687,-500.0,0.00018141,2]
[350313248,1737783051697,-500.0,0.00018141,2]
[350313250,1737783051708,-500.0,0.00018141,2]
[350313252,1737783051717,-636.46,0.00018141,2]
[350313254,1737783051726,-500.0,0.00018141,2]
[350313256,1737783051736,-500.0,0.00018141,2]
[350313258,1737783051746,-500.0,0.00018141,2]
[350313260,1737783051755,-500.0,0.00018141,2]
[350313262,1737783051764,-500.0,0.00018141,2]
[350313264,1737783051774,-249.0,0.00018152,2]
[350313266,1737783051784,-2985.96769431,0.000182,2]
[350313268,1737783051793,-3000.0,0.000182,2]
[350313270,1737783051803,-151.0,0.000182,2]
[350313272,1737783051815,-151.0,0.000182,2]
[350313274,1737783051824,-151.0,0.000182,2]
[350313276,1737783051834,-151.0,0.000182,2]
[350313278,1737783051843,-151.0,0.000182,2]
[350313280,1737783051853,-151.0,0.000182,2]
[350313282,1737783051862,-151.0,0.000182,2]
[350313284,1737783051871,-151.0,0.000182,2]
[350313286,1737783051881,-151.0,0.000182,2]
[350313288,1737783051890,-151.0,0.000182,2]
[350313290,1737783051900,-150.802,0.00018202,2]
[350313292,1737783051909,-2054.0,0.00018202,2]
[350313294,1737783051918,-541.589,0.00018202,2]
[350313296,1737783051927,-2316.245,0.00018202,2]
[350313298,1737783051937,-3000.0,0.0001821,2]
[350313300,1737783051947,-3000.0,0.0001822,2]
[350313302,1737783051956,-3000.0,0.0001823,2]
[350313304,1737783051965,-500.0,0.00018237,2]
[350313306,1737783051975,-500.0,0.00018237,2]
[350313308,1737783051984,-500.0,0.00018237,2]
[350313310,1737783051994,-500.0,0.00018237,2]
[350313312,1737783052003,-857.53,0.00018237,2]
[350313314,1737783052013,-1044.19,0.00018237,2]
[350313316,1737783052022,-500.0,0.00018237,2]
[350313318,1737783052032,-669.43,0.00018237,2]
[350313320,1737783052041,-517.15,0.00018237,2]
[350313322,1737783052051,-500.0,0.00018237,2]
[350313324,1737783052061,-605.47,0.00018237,2]
[350313326,1737783052071,-2093.17,0.00018237,2]
[350313328,1737783052080,-500.0,0.00018237,2]
[350313330,1737783052089,-500.0,0.00018237,2]
[350313332,1737783052099,-500.0,0.00018237,2]
[350313333,1737783052108,-500.0,0.00018237,2]
[350313335,1737783052118,-2020.91,0.00018237,2]
[350313337,1737783052127,-795.29,0.00018237,2]
[350313339,1737783052136,-500.0,0.00018237,2]
[350313340,1737783052146,-1094.93,0.00018237,2]
[350313342,1737783052155,-840.25,0.00018237,2]
[350313344,1737783052165,-500.0,0.00018237,2]
[350313346,1737783052175,-1024.29,0.00018237,2]
[350313348,1737783052184,-657.08,0.00018237,2]
[350313350,1737783052194,-1927.15,0.00018237,2]
[350313352,1737783052203,-500.0,0.00018237,2]
[350313354,1737783052213,-500.0,0.00018237,2]
[350313356,1737783052223,-500.0,0.00018237,2]
[350313358,1737783052232,-500.0,0.00018237,2]
[350313360,1737783052243,-500.0,0.00018237,2]
[350313362,1737783052252,-508.55,0.00018237,2]
[350313364,1737783052262,-500.0,0.00018237,2]
[350313366,1737783052271,-500.0,0.00018237,2]
[350313368,1737783052281,-1017.92,0.00018237,2]
[350313369,1737783052290,-500.0,0.00018237,2]
[350313371,1737783052300,-500.0,0.00018237,2]
[350313374,1737783052311,-500.0,0.00018237,2]
[350313375,1737783052321,-500.0,0.00018237,2]
[350313377,1737783052331,-500.0,0.00018237,2]
[350313379,1737783052341,-2934.14,0.00018237,2]
[350313381,1737783052350,-500.0,0.00018239,2]
[350313383,1737783052360,-616.12,0.00018239,2]
[350313386,1737783052371,-500.0,0.00018239,2]
[350313387,1737783052380,-511.58,0.00018239,2]
[350313389,1737783052390,-500.0,0.00018239,2]
[350313391,1737783052399,-500.0,0.00018239,2]
[350313393,1737783052408,-912.18,0.00018239,2]
[350313395,1737783052418,-816.96,0.00018239,2]
[350313397,1737783052427,-500.0,0.00018239,2]
[350313399,1737783052437,-500.0,0.00018239,2]
[350313401,1737783052446,-500.0,0.00018239,2]
[350313403,1737783052456,-3000.0,0.0001824,2]
[350313405,1737783052465,-3000.0,0.0001825,2]
[350313407,1737783052474,-255.0,0.00018253,2]
[350313409,1737783052484,-261.1,0.00018253,2]
[350313411,1737783052493,-3000.0,0.0001826,2]
[350313412,1737783052502,-3000.0,0.0001827,2]
[350313414,1737783052512,-500.88534198,0.00018273,2]
[350313416,1737783052522,-468.1034988,0.00018273,2]
[350313418,1737783052532,-160.68036244,0.00018273,2]
[350313420,1737783052542,-218.92084152,0.00018273,2]
[350313422,1737783052551,-500.0,0.00018273,2]
[350313424,1737783052562,-470.22073563,0.00018273,2]
[350313426,1737783052571,-503.05968334,0.00018273,2]
[350313428,1737783052581,-500.0,0.00018273,2]
[350313430,1737783052593,-350.47451704,0.00018273,2]
[350313432,1737783052603,-500.0,0.00018273,2]
[350313434,1737783052612,-500.0,0.00018273,2]
[350313436,1737783052622,-500.0,0.00018276,2]
[350313438,1737783052632,-787.0,0.00018276,2]
[350313440,1737783052642,-3715.07,0.00018276,2]
[350313442,1737783052651,-1000.0,0.00018276,7]
[350313444,1737783052661,-500.0,0.00018276,2]
[350313446,1737783052670,-1539.86,0.00018276,2]
[350313448,1737783052680,-500.0,0.00018276,2]
[350313450,1737783052690,-500.81,0.00018276,2]
[350313452,1737783052700,-500.0,0.00018276,2]
[350313454,1737783052710,-322.70572094,0.00018276,2]
[350313456,1737783052722,-500.0,0.00018276,2]
[350313458,1737783052731,-505.46,0.00018276,2]
[350313460,1737783052741,-500.0,0.00018277,2]
[350313462,1737783052750,-544.2,0.00018277,2]
[350313464,1737783052760,-500.0,0.00018277,2]
[350313465,1737783052769,-500.0,0.00018277,2]
[350313467,1737783052778,-1052.84,0.00018277,2]
[350313469,1737783052788,-500.0,0.00018277,2]
[350313471,1737783052798,-500.0,0.00018277,2]
[350313473,1737783052810,-654.95,0.00018277,2]
[350313476,1737783052821,-546.02,0.00018277,2]
[350313477,1737783052831,-1282.17,0.00018277,2]
[350313479,1737783052840,-828.62,0.00018277,2]
[350313481,1737783052849,-500.0,0.00018277,2]
[350313483,1737783052859,-918.14,0.00018277,2]
[350313485,1737783052868,-500.0,0.00018277,2]
[350313487,1737783052878,-787.76,0.00018277,2]
[350313489,1737783052888,-500.0,0.00018277,2]
[350313500,1737783052988,-871.44,0.00018277,2]
[350313502,1737783052998,-500.0,0.00018277,2]
[350313504,1737783053007,-716.58,0.00018277,2]
[350313506,1737783053017,-500.0,0.00018277,2]
[350313508,1737783053027,-500.0,0.00018277,2]
[350313510,1737783053036,-500.0,0.00018277,2]
[350313512,1737783053046,-616.39,0.00018277,2]
[350313514,1737783053056,-500.0,0.00018277,2]
[350313516,1737783053067,-1219.8,0.00018277,2]
[350313518,1737783053076,-985.76,0.00018277,2]
[350313520,1737783053087,-500.0,0.00018277,2]
[350313522,1737783053097,-500.0,0.00018277,2]
[350313524,1737783053107,-1865.78,0.00018277,2]